bitfinex/quotes_SOLUSD_20250928
["timestamp","ask_amount","ask_price","bid_price","bid_amount"]
[1759052197332,14.29559401,201.75,201.73,2.36571796]
[1759052198057,26.0,201.75,201.74,2.36571796]
[1759052198240,26.7,201.75,201.74,2.36571796]
[1759052200966,26.7,201.75,201.73,2.36571796]
[1759052201540,26.7,201.75,201.73,7.32275974]
[1759052204063,0.7,201.8,201.74,2.56571796]
[1759052204262,0.7,201.83,201.79,2.36571796]
[1759052204568,0.7,201.82,201.8,2.36571796]
[1759052204753,0.7,201.81,201.8,2.36571796]
[1759052205345,26.7,201.83,201.8,2.36571796]
[1759052205656,0.7,201.85,201.82,2.36571796]
[1759052205860,0.7,201.85,201.84,2.36571796]
[1759052206743,0.7,201.85,201.83,2.36571796]
[1759052206940,0.7,201.84,201.83,2.36571796]
[1759052207172,0.7,201.84,201.81,2.36571796]
[1759052207471,0.7,201.83,201.78,2.36571796]
[1759052207766,0.7,201.82,201.78,2.36571796]
[1759052208179,0.7,201.81,201.77,2.36571796]
[1759052208472,0.7,201.8,201.77,2.36571796]
[1759052208642,0.7,201.79,201.77,2.36571796]
[1759052209482,0.7,201.79,201.76,2.36571796]
[1759052209978,0.7,201.79,201.77,2.36571796]
[1759052211277,0.7,201.78,201.76,2.36571796]
[1759052212268,0.7,201.8,201.77,2.36571796]
[1759052213658,26.0,201.83,201.79,2.36571796]
[1759052213870,26.7,201.83,201.81,2.36571796]
[1759052214245,26.0,201.83,201.81,2.36571796]
[1759052214444,0.7,201.82,201.81,2.36571796]
[1759052215044,26.0,201.81,201.8,2.36571796]
[1759052215747,0.7,201.81,201.79,2.36571796]
[1759052220972,26.7,201.81,201.79,2.36571796]
[1759052222582,0.7,201.81,201.79,2.36571796]
[1759052222882,26.7,201.82,201.79,2.36571796]
[1759052223275,0.7,201.81,201.72,12.39288644]
[1759052223458,0.7,201.8,201.77,2.36571796]
[1759052223656,0.7,201.79,201.77,2.36571796]
[1759052224373,28.36571796,201.83,201.77,2.36571796]
[1759052224676,0.7,201.82,201.79,2.36571796]
[1759052224860,0.7,201.81,201.79,2.36571796]
[1759052225056,26.0,201.83,201.79,2.36571796]
[1759052225357,0.7,201.82,201.79,7.32127819]
[1759052225558,0.7,201.83,201.8,2.36571796]
[1759052225877,15.96131197,201.86,201.79,4.95556023]
[1759052226060,0.7,201.82,201.79,2.36571796]
[1759052226366,0.7,201.81,201.79,2.36571796]
[1759052229960,0.66,201.8,201.78,2.36571796]
[1759052230159,0.66,201.79,201.77,2.36571796]
[1759052230363,0.66,201.78,201.77,2.36571796]
[1759052230564,0.66,201.8,201.77,2.36571796]
[1759052230859,0.66,201.79,201.77,2.36571796]
[1759052231288,0.66,201.79,201.77,7.32185312]
[1759052231981,0.66,201.79,201.78,2.36571796]
[1759052232986,0.66,201.79,201.77,2.36571796]
[1759052233368,13.59559401,201.82,201.77,2.36571796]
[1759052233673,0.66,201.81,201.77,7.3218405]
[1759052233903,0.66,201.8,201.77,7.3218405]
[1759052234192,0.66,201.79,201.78,2.36571796]
[1759052234385,0.66,201.79,201.77,7.3218405]
[1759052235184,0.66,201.78,201.75,2.36571796]
[1759052235391,0.66,201.77,201.73,7.32268794]
[1759052235687,0.66,201.76,201.73,7.32268794]
[1759052235991,0.66,201.75,201.73,7.32268794]
[1759052237662,0.66,201.75,201.74,2.36571796]
[1759052238191,0.66,201.77,201.74,2.36571796]
[1759052238392,0.66,201.76,201.74,2.36571796]
[1759052239182,13.59559401,201.79,201.74,2.36571796]
[1759052239387,0.66,201.78,201.75,2.36571796]
[1759052239688,0.66,201.78,201.76,2.36571796]
[1759052239887,13.59559401,201.81,201.76,2.36571796]
[1759052240086,0.66,201.77,201.76,2.36571796]
[1759052240395,4.13068232,201.88,201.76,7.52207521]
[1759052240575,24.76247784,201.92,201.79,2.36571796]
[1759052240576,13.59559401,201.82,201.79,2.36571796]
[1759052240765,14.29559401,201.82,201.79,2.36571796]
[1759052241571,0.7,201.81,201.79,2.36571796]
[1759052242592,0.7,201.81,201.79,1.51171783]
[1759052243005,3.29774835,201.85,201.8,1.51171783]
[1759052243169,17.92274166,201.93,201.84,1.51171783]
[1759052243170,13.59559401,201.88,201.84,1.51171783]
[1759052243377,0.7,201.85,201.84,1.51171783]
[1759052243691,0.7,201.85,201.83,1.51171783]
[1759052244089,0.7,201.85,201.83,6.46634527]
[1759052244592,0.7,201.87,201.84,1.51171783]
[1759052244789,0.7,201.86,201.84,1.51171783]
[1759052244992,0.7,201.85,201.84,1.51171783]
[1759052245897,0.7,201.85,201.84,6.46613717]
[1759052246995,26.0,201.89,201.84,19.05218552]
[1759052247206,0.7,201.91,201.88,1.51171783]
[1759052247378,0.7,201.9,201.88,1.51171783]
[1759052247571,0.7,201.92,201.89,1.51171783]
[1759052247891,0.7,201.91,201.89,1.51171783]
[1759052248092,26.0,201.92,201.89,1.51171783]
[1759052248294,26.0,201.92,201.9,1.51171783]
[1759052248506,0.7,201.93,201.9,1.51171783]
[1759052248810,26.0,201.92,201.9,1.51171783]
[1759052248973,26.0,201.92,201.9,6.46462769]
[1759052249299,26.7,201.92,201.9,6.46462769]
[1759052251097,0.7,201.94,201.9,6.46462769]
[1759052251600,0.7,201.93,201.91,1.51171783]
[1759052252188,0.7,201.93,201.91,6.46429727]
[1759052252998,39.79559401,201.95,201.85,6.04687132]
[1759052252999,0.2,201.95,201.92,1.51171783]
[1759052253184,0.7,201.93,201.91,1.51171783]
[1759052254283,0.7,201.93,201.91,6.46439551]
[1759052258003,0.7,201.93,201.89,4.95295213]
[1759052258207,0.7,201.92,201.87,13.89613292]
[1759052258393,0.7,201.91,201.87,1.51171783]
[1759052258703,0.7,201.9,201.87,6.46540008]
[1759052260107,0.7,201.89,201.88,1.51171783]
[1759052260323,0.7,201.9,201.88,1.51171783]
[1759052260492,0.7,201.89,201.88,1.51171783]
[1759052262211,0.7,201.91,201.88,1.51171783]
[1759052262394,0.7,201.9,201.88,1.51171783]
[1759052263996,0.7,201.91,201.89,1.51171783]
[1759052264610,0.7,201.9,201.89,1.51171783]
[1759052264805,0.7,201.9,201.88,1.51171783]
[1759052265112,13.59559401,201.92,201.88,1.51171783]
[1759052265319,0.7,201.89,201.88,1.51171783]
[1759052267527,13.59559401,201.92,201.88,6.46515551]
[1759052267819,0.7,201.91,201.88,6.46515551]
[1759052268030,0.7,201.9,201.88,1.51171783]
[1759052269719,0.7,201.89,201.87,1.51171783]
[1759052270098,0.7,201.88,201.87,1.51171783]
[1759052271614,13.59559401,201.92,201.87,1.51171783]
[1759052271803,14.31559401,201.92,201.87,1.51171783]
[1759052272000,0.72,201.91,201.87,1.51171783]
[1759052272200,0.72,201.9,201.87,1.51171783]
[1759052272418,0.72,201.89,201.87,1.51171783]
[1759052272719,0.72,201.88,201.87,1.51171783]
[1759052275438,0.72,201.89,201.87,1.51171783]
[1759052275623,0.72,201.89,201.88,1.51171783]
[1759052280336,0.72,201.89,201.87,1.51171783]
[1759052280737,0.72,201.89,201.88,1.51171783]
[1759052281515,0.72,201.9,201.88,1.51171783]
[1759052282007,0.72,201.89,201.88,1.51171783]
[1759052282710,0.72,201.89,201.87,1.51171783]
[1759052285630,0.72,201.89,201.87,6.46530515]
[1759052287432,26.0,201.92,201.88,1.51171783]
[1759052287633,0.72,201.94,201.91,1.51171783]
[1759052287815,26.0,201.93,201.92,1.51171783]
[1759052288211,26.0,201.93,201.91,1.51171783]
[1759052288417,13.79559401,201.95,201.9,1.51171783]
[1759052288718,26.72,201.94,201.9,1.51171783]
[1759052288928,0.72,201.93,201.9,1.51171783]
[1759052289329,0.72,201.92,201.9,1.51171783]
[1759052289527,0.72,201.91,201.9,1.51171783]
[1759052289736,0.72,201.91,201.88,1.51171783]
[1759052289941,0.72,201.9,201.88,1.51171783]
[1759052290242,0.7,201.93,201.89,1.51171783]
[1759052290538,0.7,201.92,201.9,1.51171783]
[1759052291239,0.7,201.92,201.91,1.51171783]
[1759052292136,26.0,201.94,201.91,6.46441032]
[1759052292450,0.7,201.94,201.92,1.51171783]
[1759052293973,0.2,201.95,201.92,6.46416656]
[1759052294130,0.2,201.95,201.93,1.51171783]
[1759052294325,0.9,201.95,201.93,1.51171783]
[1759052294543,0.9,201.95,201.92,6.46416656]
[1759052294846,0.7,201.94,201.92,6.46416656]
[1759052299024,0.2,201.95,201.89,1.98673852]
[1759052299249,0.7,201.94,201.89,1.51171783]
[1759052299429,0.7,201.93,201.89,1.51171783]
[1759052299743,0.7,201.92,201.89,1.51171783]
[1759052299940,0.7,201.91,201.89,1.51171783]
[1759052300250,0.7,201.91,201.89,6.46472477]
[1759052301725,1.51171783,201.94,201.88,4.95327828]
[1759052301926,0.66,201.9,201.88,6.46499611]
[1759052302249,1.51171783,201.94,201.88,6.46499611]
[1759052302432,0.66,201.91,201.88,6.46499611]
[1759052302631,0.66,201.91,201.88,7.31332756]
[1759052303858,13.59559401,201.93,201.88,2.36004928]
[1759052304055,0.66,201.9,201.87,2.36004928]
[1759052304224,0.66,201.89,201.87,2.36004928]
[1759052304426,0.66,201.88,201.87,2.36004928]
[1759052304640,0.66,201.88,201.86,2.36004928]
[1759052305454,0.66,201.87,201.84,2.36004928]
[1759052306528,0.66,201.87,201.84,7.31442795]
[1759052306926,0.66,201.86,201.84,2.36004928]
[1759052307123,0.66,201.85,201.83,2.36004928]
[1759052307353,0.66,201.85,201.82,2.36004928]
[1759052307535,0.66,201.84,201.81,7.31518645]
[1759052309478,0.66,201.83,201.8,2.36004928]
[1759052309666,0.66,201.82,201.8,2.36004928]
[1759052310034,13.59559401,201.86,201.81,2.36004928]
[1759052310247,0.66,201.85,201.81,2.36004928]
[1759052310431,0.66,201.85,201.8,4.95527029]
[1759052310432,0.66,201.85,201.83,2.36004928]
[1759052310647,0.66,201.87,201.84,2.36004928]
[1759052311255,0.66,201.86,201.84,2.36004928]
[1759052312063,0.66,201.86,201.83,2.36004928]
[1759052312830,0.66,201.86,201.82,4.95491031]
[1759052312831,13.59559401,201.88,201.84,2.36004928]
[1759052313155,0.66,201.87,201.84,2.36004928]
[1759052313457,0.66,201.86,201.84,2.36004928]
[1759052313836,0.66,201.87,201.84,2.36004928]
[1759052314130,0.66,201.86,201.84,2.36004928]
[1759052315364,0.66,201.86,201.83,4.95463022]
[1759052315365,0.66,201.85,201.83,2.36004928]
[1759052315542,0.66,201.87,201.83,2.36004928]
[1759052315737,13.59559401,201.88,201.83,2.36004928]
[1759052315938,0.66,201.86,201.83,2.36004928]
[1759052317360,0.66,201.85,201.8,12.38727579]
[1759052317561,0.66,201.84,201.8,2.36004928]
[1759052317867,0.66,201.84,201.82,2.36004928]
[1759052318163,0.66,201.85,201.82,2.36004928]
[1759052318357,0.66,201.84,201.82,2.36004928]
[1759052318977,0.66,201.83,201.78,14.90794345]
[1759052319142,14.25559401,201.82,201.78,2.36004928]
[1759052319345,0.66,201.85,201.81,2.36004928]
[1759052319555,0.66,201.87,201.84,2.36004928]
[1759052319865,0.66,201.87,201.85,2.36004928]
[1759052320270,13.59559401,201.89,201.86,2.36004928]
[1759052320271,0.66,201.89,201.86,2.36004928]
[1759052320466,0.66,201.88,201.86,2.36004928]
[1759052320666,0.66,201.88,201.85,2.36004928]
[1759052322456,13.59559401,201.9,201.84,2.36004928]
[1759052322662,0.66,201.87,201.84,2.36004928]
[1759052323779,0.66,201.87,201.84,7.31444047]
[1759052324661,0.66,201.86,201.82,2.36004928]
[1759052324879,0.66,201.85,201.81,2.36004928]
[1759052325176,0.66,201.84,201.81,2.36004928]
[1759052325747,13.59559401,201.87,201.81,2.36004928]
[1759052325748,0.66,201.83,201.81,2.36004928]
[1759052326774,18.54934753,201.87,201.81,2.36004928]
[1759052327080,0.66,201.85,201.82,2.36004928]
[1759052327572,0.66,201.84,201.82,2.36004928]
[1759052327780,13.59559401,201.88,201.84,4.95441934]
[1759052327781,14.25559401,201.88,201.84,4.95441934]
[1759052327988,0.66,201.87,201.84,2.36004928]
[1759052329000,0.66,201.86,201.84,2.36004928]
[1759052330384,0.66,201.86,201.83,7.3147043]
[1759052332577,14.31559401,201.88,201.83,7.3147043]
[1759052332775,0.72,201.87,201.83,7.3147043]
[1759052333078,0.72,201.87,201.84,4.95426073]
[1759052333276,13.59559401,201.88,201.84,7.31431001]
[1759052333277,0.72,201.86,201.84,7.31431001]
[1759052335596,14.31559401,201.88,201.84,7.31431001]
[1759052335893,0.72,201.87,201.84,7.31431001]
[1759052336265,0.72,201.86,201.84,7.31431001]
[1759052337391,0.72,201.85,201.84,7.31431001]
[1759052337583,0.72,201.87,201.84,7.31431001]
[1759052337784,0.72,201.86,201.84,7.31431001]
[1759052341106,0.72,201.86,201.84,2.36004928]
[1759052341602,0.72,201.85,201.84,2.36004928]
[1759052341799,0.72,201.85,201.83,2.36004928]
[1759052342104,0.72,201.87,201.83,2.36004928]
[1759052342406,0.72,201.86,201.83,2.36004928]
[1759052342786,0.72,201.86,201.83,7.31461978]
[1759052343593,0.72,201.86,201.83,2.36004928]
[1759052344405,0.72,201.86,201.83,7.31464378]
[1759052345098,0.72,201.86,201.84,2.36004928]
[1759052346002,13.59559401,201.89,201.84,2.36004928]
[1759052346309,0.72,201.88,201.84,2.36004928]
[1759052346484,0.72,201.87,201.84,2.36004928]
[1759052346808,0.72,201.86,201.84,2.36004928]
[1759052346994,0.72,201.86,201.84,7.31440545]
[1759052347999,13.59559401,201.84,201.79,2.36004928]
[1759052348205,0.72,201.83,201.79,2.36004928]
[1759052348503,0.72,201.83,201.77,4.95613817]
[1759052348504,0.72,201.82,201.78,2.36004928]
[1759052348703,0.72,201.81,201.78,2.36004928]
[1759052348905,0.72,201.81,201.75,12.49102856]
[1759052348906,0.72,201.8,201.75,2.46004928]
[1759052349084,16.67564329,201.79,201.75,0.1]
[1759052349486,14.31559401,201.79,201.75,0.1]
[1759052350206,19.27141816,201.79,201.75,0.1]
[1759052350414,13.59559401,201.77,201.75,0.1]
[1759052350797,14.25559401,201.76,201.75,0.1]
[1759052354602,13.59559401,201.78,201.75,5.05661923]
[1759052354801,14.25559401,201.78,201.75,7.41666851]
[1759052355017,13.59559401,201.79,201.76,2.36004928]
[1759052355209,14.25559401,201.79,201.76,2.36004928]
[1759052355915,0.66,201.78,201.76,2.36004928]
[1759052356114,0.66,201.78,201.75,7.41666851]
[1759052356501,0.66,201.78,201.75,2.46004928]
[1759052356694,0.66,201.77,201.75,2.46004928]
[1759052356895,0.66,201.76,201.75,0.1]
[1759052357708,13.59559401,201.79,201.75,0.1]
[1759052357915,0.66,201.76,201.75,0.1]
[1759052365504,14.25559401,201.76,201.75,0.1]
[1759052368428,20.72478433,201.76,201.75,0.1]
[1759052368733,58.92478433,201.76,201.75,0.1]
[1759052369198,20.72478433,201.76,201.75,0.1]
[1759052369397,58.92478433,201.76,201.75,0.1]
[1759052372309,20.72478433,201.76,201.75,0.1]
[1759052372617,58.92478433,201.76,201.75,0.1]
[1759052375033,14.25559401,201.76,201.75,0.1]
[1759052375231,13.59559401,201.76,201.75,0.1]
[1759052375707,15.80840051,201.76,201.75,0.1]
[1759052376329,54.00840051,201.76,201.75,0.1]
[1759052376522,13.59559401,201.8,201.75,1.8128065]
[1759052376826,13.59559401,201.8,201.75,0.1]
[1759052376827,13.59559401,201.78,201.75,0.1]
[1759052377027,15.10840051,201.78,201.75,0.1]
[1759052377205,13.59559401,201.76,201.75,0.1]
[1759052377619,14.29559401,201.76,201.75,0.1]
[1759052378810,15.80840051,201.76,201.75,0.1]
[1759052379532,13.59559401,201.76,201.75,0.1]
[1759052387317,14.29559401,201.76,201.75,0.1]
[1759052390944,13.59559401,201.76,201.75,0.1]
[1759052392117,14.26559401,201.76,201.75,0.1]
[1759052392538,39.59559401,201.79,201.75,1.8128065]
[1759052392939,39.59559401,201.79,201.75,6.76943599]
[1759052393124,40.3828065,201.81,201.75,6.76943599]
[1759052393125,13.59559401,201.8,201.75,6.76943599]
[1759052393325,14.26559401,201.8,201.75,6.76943599]
[1759052394439,14.26559401,201.8,201.76,1.5128065]
[1759052395046,13.59559401,201.8,201.76,1.5128065]
[1759052395338,0.67,201.79,201.76,1.5128065]
[1759052395544,0.67,201.79,201.76,6.46913377]
[1759052395945,13.59559401,201.8,201.77,1.5128065]
[1759052396150,13.59559401,201.83,201.79,1.5128065]
[1759052396438,0.67,201.82,201.79,1.5128065]
[1759052396636,0.67,201.81,201.79,1.5128065]
[1759052397518,0.67,201.8,201.77,6.46870194]
[1759052397840,0.67,201.82,201.77,6.46870194]
[1759052398031,0.67,201.81,201.77,6.46870194]
[1759052399132,0.67,201.81,201.78,1.5128065]
[1759052399329,0.67,201.81,201.78,6.4686437]
[1759052399540,0.67,201.83,201.79,1.5128065]
[1759052399742,51.79559401,201.84,201.79,1.5128065]
[1759052400048,0.67,201.82,201.79,1.5128065]
[1759052401543,14.26559401,201.85,201.81,1.5128065]
[1759052401749,14.26559401,201.85,201.82,1.5128065]
[1759052402248,14.26559401,201.85,201.8,5.15540138]
[1759052402447,0.67,201.84,201.8,4.95540138]
[1759052405924,0.67,201.83,201.79,6.46843518]
[1759052406240,0.67,201.84,201.8,1.5128065]
[1759052407949,0.67,201.83,201.8,1.5128065]
[1759052409245,0.67,201.83,201.81,1.5128065]
[1759052409447,14.26559401,201.85,201.81,1.5128065]
[1759052409645,0.67,201.84,201.81,1.5128065]
[1759052410442,13.59559401,201.85,201.82,1.5128065]
[1759052411348,13.59559401,201.85,201.82,6.46769493]
[1759052411553,14.27559401,201.85,201.82,6.46769493]
[1759052412150,0.68,201.84,201.82,4.95488843]
[1759052412331,0.68,201.83,201.8,1.5128065]
[1759052413358,0.68,201.83,201.81,4.95515583]
[1759052413952,14.27559401,201.86,201.81,6.66796233]
[1759052414428,14.27559401,201.86,201.82,1.5128065]
[1759052414630,0.68,201.86,201.83,1.5128065]
[1759052414830,0.68,201.88,201.85,1.5128065]
[1759052415036,0.68,201.88,201.86,1.5128065]
[1759052415849,0.68,201.88,201.85,6.46693843]
[1759052417357,0.68,201.87,201.83,4.95422795]
[1759052417533,0.68,201.86,201.83,11.42166839]
[1759052418048,0.68,201.86,201.83,4.95422795]
[1759052418252,0.68,201.85,201.81,6.46777174]
[1759052418558,0.68,201.84,201.81,6.46777174]
[1759052418955,0.68,201.86,201.81,6.46777174]
[1759052419253,0.68,201.85,201.81,6.46777174]
[1759052422554,0.68,201.85,201.82,1.5128065]
[1759052422760,0.68,201.85,201.83,1.5128065]
[1759052422940,13.59559401,201.87,201.83,1.5128065]
[1759052423262,13.59559401,201.89,201.85,1.5128065]
[1759052423462,13.59559401,201.89,201.87,1.5128065]
[1759052423762,0.67,201.9,201.87,1.5128065]
[1759052424860,0.67,201.9,201.87,6.4662983]
[1759052425666,14.26559401,201.92,201.88,1.5128065]
[1759052426468,0.67,201.91,201.88,1.5128065]
[1759052426668,0.67,201.91,201.88,2.36019482]
[1759052427945,15.95578883,201.93,201.87,2.36019482]
[1759052428149,0.67,201.92,201.87,7.3138575]
[1759052428349,0.67,201.91,201.87,7.3138575]
[1759052428970,0.67,201.9,201.87,2.36019482]
[1759052429165,0.67,201.9,201.87,7.31381823]
[1759052429759,15.95578883,201.93,201.87,7.31381823]
[1759052429951,0.67,201.91,201.87,7.31381823]
[1759052430755,0.67,201.9,201.87,7.31381823]
[1759052431670,13.59559401,201.93,201.88,2.56019482]
[1759052431882,0.67,201.93,201.89,2.36019482]
[1759052432571,0.67,201.93,201.89,7.31319262]
[1759052432748,0.87,201.95,201.91,2.36019482]
[1759052432947,0.67,201.94,201.91,2.36019482]
[1759052433150,0.2,201.95,201.93,2.36019482]
[1759052434579,0.2,201.95,201.93,7.31240421]
[1759052435084,0.2,201.95,201.93,2.36019482]
[1759052435251,0.2,201.95,201.93,7.31237892]
[1759052436560,0.87,201.95,201.93,2.36019482]
[1759052437985,0.2,201.95,201.93,7.31219772]
[1759052440074,0.2,201.95,201.9,5.15277769]
[1759052440275,0.2,201.95,201.87,38.16]
[1759052440276,0.67,201.94,201.87,38.16]
[1759052440552,2.36019482,201.9,201.83,2.36019482]
[1759052440760,2.36019482,201.9,201.78,12.38973139]
[1759052440761,0.67,201.89,201.84,2.36019482]
[1759052440965,2.36019482,201.91,201.84,2.36019482]
[1759052441168,0.67,201.88,201.84,2.36019482]
[1759052441364,0.67,201.88,201.84,7.31455742]
[1759052442082,0.67,201.87,201.83,2.36019482]
[1759052442262,4.95270319,201.91,201.82,2.36019482]
[1759052442263,0.67,201.86,201.82,2.36019482]
[1759052442602,0.67,201.86,201.8,0.2]
[1759052442902,0.67,201.85,201.83,2.36019482]
[1759052443178,0.67,201.87,201.83,2.36019482]
[1759052445281,0.67,201.86,201.83,2.36019482]
[1759052445486,0.67,201.85,201.83,2.36019482]
[1759052445664,0.67,201.87,201.83,2.36019482]
[1759052445864,0.67,201.86,201.83,2.36019482]
[1759052446690,13.59559401,201.89,201.83,2.36019482]
[1759052446861,0.2,201.95,201.84,2.36019482]
[1759052447068,0.67,201.93,201.91,2.36019482]
[1759052447265,13.79559401,201.95,201.91,2.36019482]
[1759052447266,18.74732914,201.95,201.91,2.36019482]
[1759052447471,13.59559401,201.93,201.89,2.36019482]
[1759052447986,0.67,201.92,201.89,2.36019482]
[1759052448579,0.67,201.92,201.91,2.36019482]
[1759052450791,0.67,201.92,201.89,2.36019482]
[1759052450992,0.65,201.91,201.89,2.36019482]
[1759052451619,13.59559401,201.93,201.89,2.36019482]
[1759052451767,0.65,201.92,201.89,2.36019482]
[1759052451965,13.59559401,201.93,201.89,2.36019482]
[1759052451966,0.65,201.91,201.89,2.36019482]
[1759052452288,0.65,201.9,201.89,2.36019482]
[1759052452891,13.59559401,201.89,201.85,2.36019482]
[1759052453094,0.65,201.88,201.83,2.36019482]
[1759052453393,0.65,201.87,201.83,2.36019482]
[1759052453571,13.59559401,201.89,201.83,2.36019482]
[1759052453572,0.65,201.86,201.83,2.36019482]
[1759052453769,0.65,201.86,201.78,12.38922582]
[1759052453770,13.59559401,201.84,201.79,2.36019482]
[1759052454082,0.65,201.83,201.79,2.36019482]
[1759052454282,0.65,201.82,201.79,2.36019482]
[1759052454483,0.65,201.82,201.76,4.95638382]
[1759052454484,0.65,201.86,201.81,2.36019482]
[1759052454692,0.65,201.85,201.82,2.36019482]
[1759052454885,0.65,201.85,201.83,2.36019482]
[1759052455064,13.59559401,201.86,201.84,2.36019482]
[1759052455581,0.65,201.86,201.84,2.36019482]
[1759052457167,13.59559401,201.87,201.84,2.36019482]
[1759052457365,26.0,201.88,201.85,2.36019482]
[1759052457583,26.0,201.88,201.86,2.36019482]
[1759052458376,26.65,201.88,201.86,2.36019482]
[1759052458988,26.65,201.88,201.85,2.36019482]
[1759052459192,14.24559401,201.87,201.79,4.9556171]
[1759052459393,0.65,201.86,201.81,2.36019482]
[1759052459581,0.65,201.85,201.8,2.36019482]
[1759052459769,0.65,201.84,201.81,2.36019482]
[1759052459970,0.65,201.83,201.8,2.36019482]
[1759052460175,0.65,201.83,201.8,7.3155226]
[1759052460378,0.65,201.85,201.81,2.36019482]
[1759052460586,0.65,201.84,201.81,2.36019482]
[1759052460789,0.65,201.83,201.81,2.36019482]
[1759052460981,0.65,201.82,201.75,0.1]
[1759052461185,0.65,201.82,201.78,2.36019482]
[1759052461383,0.65,201.81,201.78,2.36019482]
[1759052461581,0.65,201.8,201.78,2.36019482]
[1759052461777,0.65,201.8,201.75,0.1]
[1759052461778,0.65,201.79,201.75,2.46019482]
[1759052461980,0.65,201.78,201.75,2.46019482]
[1759052462189,13.59559401,201.8,201.75,0.1]
[1759052462190,0.65,201.77,201.75,0.1]
[1759052462397,0.65,201.81,201.76,2.36019482]
[1759052462576,13.59559401,201.82,201.77,2.36019482]
[1759052462777,0.65,201.81,201.77,2.36019482]
[1759052462993,0.65,201.8,201.77,2.36019482]
[1759052464294,13.59559401,201.78,201.75,2.46019482]
[1759052464502,13.59559401,201.76,201.75,0.1]
[1759052464998,42.60578883,201.76,201.75,0.1]
[1759052467093,39.59559401,201.76,201.75,0.1]
[1759052467397,40.24559401,201.76,201.75,0.1]
[1759052469499,39.59559401,201.76,201.75,0.1]
[1759052469885,13.59559401,201.76,201.75,0.1]
[1759052470904,14.30559401,201.76,201.75,0.1]
[1759052473702,0.71,201.78,201.75,0.1]
[1759052473893,13.59559401,201.79,201.75,7.4168142]
[1759052474121,13.59559401,201.79,201.76,2.36019482]
[1759052474603,13.59559401,201.8,201.76,2.36019482]
[1759052474803,14.30559401,201.8,201.76,2.36019482]
[1759052474999,13.59559401,201.84,201.79,2.36019482]
[1759052475197,13.59559401,201.84,201.81,2.36019482]
[1759052475501,0.71,201.83,201.8,2.36019482]
[1759052476505,13.59559401,201.84,201.82,2.36019482]
[1759052476882,14.30559401,201.84,201.82,2.36019482]
[1759052477401,38.4,201.87,201.82,2.36019482]
[1759052477600,38.4,201.87,201.83,2.36019482]
[1759052477601,0.71,201.87,201.83,2.36019482]
[1759052477794,14.30559401,201.86,201.84,2.36019482]
[1759052478293,14.30559401,201.86,201.84,7.3144874]
[1759052478489,0.71,201.85,201.84,7.3144874]
[1759052478697,0.71,201.85,201.84,2.36019482]
[1759052479088,0.71,201.87,201.84,2.36019482]
[1759052479290,0.71,201.86,201.84,2.36019482]
[1759052479586,14.30559401,201.88,201.84,2.36019482]
[1759052479785,14.30559401,201.88,201.83,7.31467825]
[1759052479786,0.71,201.87,201.83,7.31467825]
[1759052479994,0.71,201.86,201.84,2.36019482]
[1759052480505,0.71,201.86,201.82,4.95488451]
[1759052480703,13.59559401,201.88,201.83,2.36019482]
[1759052480899,0.65,201.85,201.83,2.36019482]
[1759052483416,0.65,201.85,201.83,7.31483693]
[1759052484290,13.59559401,201.88,201.83,7.31483693]
[1759052484497,0.65,201.87,201.83,7.31483693]
[1759052484707,0.65,201.86,201.83,7.31483693]
[1759052485312,13.59559401,201.88,201.83,7.31483693]
[1759052485313,14.24559401,201.88,201.83,7.31483693]
[1759052485512,0.65,201.87,201.83,7.31483693]
[1759052485814,0.65,201.86,201.83,7.31483693]
[1759052486187,0.65,201.89,201.85,2.36019482]
[1759052486497,13.59559401,201.9,201.87,2.36019482]
[1759052486707,14.24559401,201.9,201.87,2.36019482]